fUSD/lending_fUSD_20251101
["ID","MTS","AMOUNT","RATE_DAILY","PERIOD"]
[392806230,1761976232210,-150.0,0.00014999,2]
[392806232,1761976232220,-150.0,0.00014999,2]
[392806234,1761976232230,-500.0,0.00014999,2]
[392806243,1761976232508,-497.75803678,0.00014999,2]
[392806244,1761976232520,-500.0,0.00014999,2]
[392806245,1761976232530,-500.0,0.00014999,2]
[392806246,1761976232540,-500.0,0.00014999,2]
[392806247,1761976232549,-500.0,0.00014999,2]
[392806248,1761976232560,-500.0,0.00014999,2]
[392806249,1761976232569,-500.0,0.00014999,2]
[392806250,1761976232580,-345.9680587,0.00014999,2]
[392806251,1761976232590,-500.0,0.00014999,2]
[392806252,1761976232599,-190.82323287,0.00014999,2]
[392806253,1761976232609,-237.78375784,0.00014999,2]
[392806254,1761976232618,-500.0,0.00014999,2]
[392806255,1761976232628,-500.0,0.00014999,2]
[392806256,1761976232637,-500.0,0.00014999,2]
[392806257,1761976232647,-460.4433398,0.00014999,2]
[392806258,1761976232658,-500.0,0.00014999,2]
[392806259,1761976232668,-500.0,0.00014999,2]
[392806260,1761976232677,-783.0,0.00014999,2]
[392806261,1761976232689,-500.0,0.00014999,2]
[392806262,1761976232699,-500.0,0.00014999,2]
[392806263,1761976232709,-500.0,0.00014999,2]
[392806264,1761976232719,-500.0,0.00014999,2]
[392806265,1761976232729,-500.0,0.00014999,2]
[392806266,1761976232739,-500.0,0.00014999,2]
[392806267,1761976232749,-500.0,0.00014999,2]
[392806268,1761976232763,-386.37770143,0.00014999,2]
[392806269,1761976232773,-500.0,0.00014999,2]
[392806270,1761976232783,-500.0,0.00014999,2]
[392806271,1761976232794,-500.0,0.00014999,2]
[392806272,1761976232803,-500.0,0.00014999,2]
[392806273,1761976232813,-500.0,0.00014999,2]
[392806274,1761976232822,-400.0,0.00014999,2]
[392806275,1761976232832,-500.0,0.00014999,2]
[392806276,1761976232842,-500.0,0.00014999,2]
[392806277,1761976232853,-500.0,0.00014999,2]
[392806278,1761976232863,-500.0,0.00014999,2]
[392806279,1761976232872,-500.0,0.00014999,2]
[392806280,1761976232882,-500.0,0.00014999,2]
[392806281,1761976232891,-500.0,0.00014999,2]
[392806282,1761976232901,-500.0,0.00014999,2]
[392806283,1761976232910,-500.0,0.00014999,2]
[392806284,1761976232920,-500.0,0.00014999,2]
[392806285,1761976232930,-400.0,0.00014999,2]
[392806286,1761976232941,-500.0,0.00014999,2]
[392806287,1761976232951,-500.0,0.00014999,2]
[392806288,1761976232960,-500.0,0.00014999,2]
[392806289,1761976232970,-500.0,0.00014999,2]
[392806290,1761976232979,-500.0,0.00014999,2]
[392806291,1761976232988,-500.0,0.00014999,2]
[392806292,1761976232998,-500.0,0.00014999,2]
[392806293,1761976233008,-671.01388889,0.00014999,2]
[392806294,1761976233018,-118085.86564346,0.00015,2]
[392806295,1761976233031,-9938.55904102,0.00015,2]
[392806296,1761976233047,-4385.28474669,0.00015,2]
[392806297,1761976233059,-7396.50665693,0.00015,2]
[392806298,1761976233070,-5877.14683309,0.00015,2]
[392806299,1761976233082,-377.78600722,0.00015,2]
[392806300,1761976233105,-48771.45142665,0.00015,2]
[392806303,1761976237762,-52390.4845314,0.00014993,2]
[392806304,1761976237772,-1264033.65599515,0.00014996,2]
[392806305,1761976237782,-2977431.56663018,0.00015,2]
[392806306,1761976237795,-10056.4111576,0.00015,2]
[392806307,1761976237806,-250.21005725,0.00015,2]
[392806309,1761976237831,-619.76639165,0.00015,2]
[392806320,1761976239952,-1348916.9873715,0.00015,2]
[392806321,1761976240119,-512.27802841,0.00015,2]
[392806396,1761976397568,-250.4602882,0.00013699,2]
[392806397,1761976399143,-215.60324455,0.00013699,2]
[392806398,1761976399963,-215.60324455,0.00013699,2]
[392806399,1761976409535,331.0,0.000119,5]
[392806593,1761977093943,2407.99443742,0.000125,2]
[392806594,1761977106852,150.0,0.00013488,2]
[392806595,1761977114459,150.0,0.00013488,2]
[392806598,1761977201398,516.0,0.00018,30]
[392806603,1761977235701,999.0,0.00014031,3]
[392806615,1761977431849,-88.2432227,0.00013699,2]
[392806616,1761977431859,-200.0,0.00014055,2]
[392806617,1761977431869,-2184.66,0.00014117,2]
[392806618,1761977431879,-415.603245,0.00014339,2]
[392806619,1761977431889,-500.0,0.00014411,2]
[392806620,1761977431899,-500.0,0.00014493,2]
[392806621,1761977431909,-500.0,0.00014685,2]
[392806622,1761977431918,-869.7082797,0.00014741,2]
[392806623,1761977431927,-168.0,0.00014804,2]
[392806624,1761977431937,-1763.9694,0.0001485,2]
[392806625,1761977431950,-300.0,0.00014871,2]
[392806626,1761977431960,-300.0,0.00014871,2]
[392806627,1761977431970,-1200.0,0.00014871,2]
[392806628,1761977431979,-300.0,0.00014871,2]
[392806629,1761977431989,-1200.0,0.00014872,2]
[392806630,1761977431999,-150.0,0.00014872,2]
[392806631,1761977432009,-300.0,0.00014872,2]
[392806632,1761977432018,-465.40478572,0.00014873,2]
[392806633,1761977432028,-500.0,0.00014873,2]
[392806634,1761977432038,-454.99105104,0.00014873,2]
[392806635,1761977432048,-500.0,0.00014873,2]
[392806636,1761977432058,-500.0,0.00014873,2]
[392806637,1761977432067,-500.0,0.00014873,2]
[392806638,1761977432078,-500.0,0.00014873,2]
[392806639,1761977432087,-585.02702278,0.00014873,2]
[392806640,1761977432097,-500.0,0.00014873,2]
[392806641,1761977432107,-500.0,0.00014873,2]
[392806642,1761977432117,-500.0,0.00014873,2]
[392806643,1761977432127,-500.0,0.00014873,2]
[392806644,1761977432137,-500.0,0.00014873,2]
[392806645,1761977432150,-500.0,0.00014873,2]
[392806646,1761977432160,-500.0,0.00014873,2]
[392806647,1761977432170,-500.0,0.00014873,2]
[392806648,1761977432180,-615.96233013,0.00014873,2]
[392806650,1761977432189,-500.0,0.00014873,2]
[392806652,1761977432199,-685.13,0.00014873,2]
[392806654,1761977432209,-242.6841,0.00014899,2]
[392806656,1761977432218,-1000.0,0.00014899,2]
[392806658,1761977432228,-2212.924,0.00014899,2]
[392806660,1761977432237,-169.9274572,0.00014899,2]
[392806662,1761977432248,-1860.37341357,0.000149,2]
[392806665,1761977432268,-8655.8832834,0.000149,2]
[392806668,1761977432291,-2452.0,0.000149,2]
[392806671,1761977432303,-4767.46280303,0.000149,2]
[392806672,1761977432313,-174.7003736,0.000149,2]
[392806674,1761977432323,-24387.57957304,0.000149,2]
[392806712,1761977433885,303.70528457,0.00013,5]
[392806713,1761977437775,-1285.22464554,0.000149,2]
[392806714,1761977437831,-11279.72859628,0.000149,2]
[392806715,1761977437841,-253.63598362,0.000149,2]
[392806716,1761977437850,-313.75555018,0.000149,2]
[392806717,1761977437860,-161.13954148,0.000149,2]
[392806718,1761977437870,-153.42491547,0.000149,2]
[392806719,1761977437879,-476.35,0.0001497,2]
[392806720,1761977437889,-476.35,0.0001497,2]
[392806721,1761977437898,-241.77981679,0.00014973,2]
[392806722,1761977437908,-500.0,0.00014973,2]
[392806723,1761977437919,-500.0,0.00014973,2]
[392806724,1761977437928,-500.0,0.00014973,2]
[392806725,1761977437938,-500.0,0.00014973,2]
[392806726,1761977437948,-514.82975373,0.00014973,2]
[392806727,1761977437958,-505.61853549,0.00014973,2]
[392806728,1761977437967,-501.12948343,0.00014973,2]
[392806729,1761977437977,-500.0,0.00014973,2]
[392806730,1761977437987,-501.02068737,0.00014973,2]
[392806731,1761977437997,-501.01385044,0.00014973,2]
[392806732,1761977438007,-500.0,0.00014973,2]
[392806733,1761977438016,-500.0,0.00014973,2]
[392806734,1761977438026,-150.0,0.00014986,2]
[392806735,1761977438036,-182.04240781,0.00014986,2]
[392806736,1761977438048,-150.0,0.00014993,2]
[392806737,1761977438058,-151.0,0.00014997,2]
[392806738,1761977438068,-151.0,0.00014997,2]
[392806739,1761977438079,-500.0,0.00014998,2]
[392806740,1761977438089,-500.0,0.00014998,2]
[392806741,1761977438100,-500.0,0.00014998,2]
[392806742,1761977438110,-464.4579078,0.00014998,2]
[392806743,1761977438120,-933.9393697,0.00014999,2]
[392806744,1761977438131,-93488.4946124,0.00014999,2]
[392806745,1761977438140,-1000.6278,0.00014999,2]
[392806746,1761977438151,-155.0,0.00014999,2]
[392806747,1761977438161,-509660.49158066,0.00015,2]
[392806748,1761977438171,-2027.95723379,0.00015,2]
[392806749,1761977438181,-7894.68518592,0.00015,2]
[392806750,1761977438191,-2340142.09381782,0.00015,2]
[392806751,1761977438203,-10089.95847673,0.00015,2]
[392806752,1761977440283,-116.05677765,0.00014899,2]
[392806753,1761977440294,-623.27311337,0.00014899,2]
[392806754,1761977440307,-620.36104505,0.00014899,2]
[392806755,1761977440334,-51.71946782,0.00014899,2]
[392806756,1761977440344,-4865.67781499,0.00014999,2]
[392806757,1761977440356,-731.16649891,0.00014999,2]
[392806758,1761977440365,-1348185.82087259,0.00015,2]
[392806768,1761977442931,-607.3,0.00015,2]
[392806771,1761977446023,-511.90521905,0.00014899,2]
[392806796,1761978002355,-159.65,0.00013699,2]
[392806797,1761978002380,-582.22,0.00013958,2]
[392806798,1761978002401,-500.0,0.00013981,2]
[392806799,1761978002423,-104.42687947,0.00013981,2]
[392806802,1761978035288,1346.0,0.000125,5]
[392806823,1761978115791,-300.0,0.0001395,2]
[392806824,1761978115811,-300.0,0.00013951,2]
[392806825,1761978115827,-9400.01,0.00013951,2]
[392806826,1761978115972,-4693.64,0.00013951,2]
[392806827,1761978116007,-45.57312053,0.00013981,2]
[392806828,1761978116027,-3910.23,0.00014005,2]
[392806829,1761978116037,-783.41,0.00014028,2]
[392806830,1761978116048,-45.57312053,0.00014028,2]
[392806831,1761978116060,-171.01687947,0.00014028,2]
[392806832,1761978116070,-250.0,0.00014163,2]
[392806833,1761978116079,-100.56687947,0.00014573,2]
[392806834,1761978116176,-67.43312053,0.00014573,2]
[392806835,1761978116209,-168.0,0.00014579,2]
[392806836,1761978116244,-168.0,0.00014597,2]
[392806837,1761978116285,-168.0,0.00014605,2]
[392806838,1761978116318,-1200.0,0.00014699,2]
[392806839,1761978116348,-500.0,0.00014712,2]
[392806840,1761978116376,-893.09678367,0.00014792,2]
[392806841,1761978116407,-1510.36216514,0.000148,2]
[392806842,1761978116437,-300.0,0.00014809,2]
[392806843,1761978116461,-67.43312053,0.00014809,2]
[392806844,1761978116472,-168.0,0.00014809,2]
[392806845,1761978116490,-64.56687947,0.00014809,2]
[392806846,1761978116499,-103.43312053,0.0001481,2]
[392806847,1761978116510,-64.56687947,0.0001481,2]
[392806848,1761978116519,-103.43312053,0.0001485,2]
[392806849,1761978116539,-1200.0,0.0001485,2]
[392806850,1761978116550,-423.70961947,0.0001485,2]
[392806851,1761978116560,-76.29038053,0.00014871,2]
[392806852,1761978116592,-1123.70961947,0.00014871,2]
[392806853,1761978116621,-646.211,0.00014899,2]
[392806854,1761978116652,-2593.5934,0.00014899,2]
[392806855,1761978116682,-272.98196106,0.00014899,2]
[392806856,1761978116695,-727.01803894,0.00014899,2]
[392806857,1761978116705,-150.0,0.00014899,2]
[392806858,1761978116715,-16.07874473,0.000149,2]
[392806859,1761978116726,-1510.36216514,0.000149,2]
[392806860,1761978116760,-300.0,0.000149,2]
[392806861,1761978116805,-50.22586132,0.000149,2]
[392806862,1761978116851,-3694.70222294,0.000149,2]
[392806863,1761978116881,-151.52130534,0.000149,2]
[392806864,1761978116914,-500.0,0.00014973,2]
[392806865,1761978117202,-500.0,0.00014973,2]
[392806866,1761978117222,-513.48315846,0.00014973,2]
[392806867,1761978117237,-503.0663356,0.00014973,2]
[392806868,1761978117247,-107.16012541,0.00014973,2]
[392806869,1761978117259,-344.91158383,0.00014973,2]
[392806870,1761978117268,-301.29941617,0.00014973,2]
[392806871,1761978117280,-198.70058383,0.00014973,2]
[392806872,1761978117290,-500.0,0.00014973,2]
[392806873,1761978117300,-508.10551792,0.00014973,2]
[392806874,1761978117309,-570.58461787,0.00014973,2]
[392806875,1761978117319,-500.0,0.00014973,2]
[392806876,1761978117328,-316.20268038,0.00014973,2]
[392806877,1761978117340,-183.79731962,0.00014973,2]
[392806878,1761978117350,-487.45554306,0.00014973,2]
[392806879,1761978117360,-151.0,0.00014991,2]
[392806880,1761978117369,-151.0,0.00014991,2]
[392806881,1761978117379,-26.74713732,0.00014991,2]
[392806882,1761978117398,-124.25286268,0.00014991,2]
[392806883,1761978117408,-151.0,0.00014991,2]
[392806884,1761978117417,-151.0,0.00014991,2]
[392806885,1761978117427,-151.0,0.00014991,2]
[392806886,1761978117437,-151.0,0.00014991,2]
[392806887,1761978117446,-151.0,0.00014991,2]
[392806888,1761978117456,-151.0,0.00014991,2]
[392806889,1761978117465,-151.0,0.00014991,2]
[392806890,1761978117475,-521.63904443,0.00014991,2]
[392806891,1761978117485,-151.0,0.00014991,2]
[392806892,1761978117494,-151.0,0.00014991,2]
[392806893,1761978117504,-151.0,0.00014991,2]
[392806894,1761978117513,-151.0,0.00014991,2]
[392806895,1761978117523,-151.0,0.00014991,2]
[392806896,1761978117532,-151.0,0.00014991,2]
[392806897,1761978117542,-151.0,0.00014991,2]
[392806898,1761978117551,-151.0,0.00014991,2]
[392806899,1761978117561,-151.0,0.00014991,2]
[392806900,1761978117571,-151.0,0.00014991,2]
[392806901,1761978117581,-151.0,0.00014991,2]
[392806902,1761978117595,-150.0,0.00014991,2]
[392806903,1761978117606,-150.0,0.00014991,2]
[392806904,1761978117616,-30.81031583,0.00014991,2]
[392806905,1761978117628,-119.18968417,0.00014991,2]
[392806906,1761978117638,-32.33162117,0.00014991,2]
[392806907,1761978117654,-117.66837883,0.00014991,2]
[392806908,1761978117665,-150.0,0.00014991,2]
[392806909,1761978117675,-150.0,0.00014991,2]
[392806910,1761978117685,-82.33162117,0.00014991,2]
[392806911,1761978117696,-67.66837883,0.00014991,2]
[392806912,1761978117706,-432.33162117,0.00014991,2]
[392806913,1761978117751,-67.66837883,0.00014991,2]
[392806914,1761978117780,-151.0,0.00014997,2]
[392806915,1761978117810,-151.0,0.00014998,2]
[392806916,1761978117840,-151.0,0.00014998,2]
[392806917,1761978117871,-151.0,0.00014998,2]
[392806918,1761978117900,-151.0,0.00014999,2]
[392806919,1761978117932,-155.0,0.00014999,2]
[392806920,1761978117963,-731.166499,0.00014999,2]
[392806921,1761978117996,-500.0,0.00014999,2]
[392806922,1761978118028,-251.44352894,0.00014999,2]
[392806923,1761978118058,-343.25553677,0.00014999,2]
[392806924,1761978118089,-500.0,0.00014999,2]
[392806925,1761978118119,-175.8296513,0.00014999,2]
[392806926,1761978118150,-437.85855453,0.00014999,2]
[392806927,1761978118188,-218.27310087,0.00014999,2]
[392806928,1761978118221,-500.0,0.00014999,2]
[392806929,1761978118255,-287.03476209,0.00014999,2]
[392806930,1761978118276,-307.56294344,0.00014999,2]
[392806931,1761978118315,-192.43705656,0.00014999,2]
[392806932,1761978118347,-500.0,0.00014999,2]
[392806933,1761978118379,-500.0,0.00014999,2]
[392806934,1761978118416,-500.0,0.00014999,2]
[392806935,1761978118448,-500.0,0.00014999,2]
[392806936,1761978118481,-500.0,0.00014999,2]
[392806937,1761978118514,-500.0,0.00014999,2]
[392806938,1761978118543,-949.0829497,0.00014999,2]
[392806939,1761978118572,-155.0,0.00014999,2]
[392806940,1761978118605,-500.0,0.00014999,2]
[392806941,1761978118653,-3081.6285385,0.00014999,2]
[392806942,1761978118686,-500.0,0.00014999,2]
[392806943,1761978118716,-500.0,0.00014999,2]
[392806944,1761978118745,-500.0,0.00014999,2]
[392806945,1761978118774,-336.752923,0.00014999,2]
[392806946,1761978118821,-163.247077,0.00014999,2]
[392806947,1761978118852,-641.3407631,0.00014999,2]
[392806948,1761978118885,-151.97796274,0.00014999,2]
[392806949,1761978118917,-150.0,0.00014999,2]
[392806950,1761978118946,-150.0,0.00014999,2]
[392806951,1761978118977,-150.0,0.00014999,2]
[392806952,1761978119009,-150.0,0.00014999,2]
[392806953,1761978119039,-150.0,0.00014999,2]
[392806954,1761978119067,-150.0,0.00014999,2]
[392806955,1761978119086,-67.66837883,0.00014999,2]
[392806956,1761978119102,-151.0,0.00014999,2]
[392806957,1761978119113,-151.0,0.00014999,2]
[392806958,1761978119124,-151.0,0.00014999,2]
[392806959,1761978119135,-151.0,0.00014999,2]
[392806960,1761978119150,-151.0,0.00014999,2]
[392806961,1761978119162,-155.0,0.00014999,2]
[392806962,1761978119173,-731.166499,0.00014999,2]
[392806963,1761978119206,-476.16963513,0.00014999,2]
[392806964,1761978119218,-500.0,0.00014999,2]
[392806965,1761978119234,-251.44352894,0.00014999,2]
[392806966,1761978119245,-343.25553677,0.00014999,2]
[392806967,1761978119260,-500.0,0.00014999,2]
[392806968,1761978119272,-175.8296513,0.00014999,2]
[392806969,1761978119283,-437.85855453,0.00014999,2]
[392806970,1761978119295,-218.27310087,0.00014999,2]
[392806971,1761978119324,-500.0,0.00014999,2]
[392806972,1761978119337,-287.03476209,0.00014999,2]
[392806973,1761978119349,-154.94997534,0.00014999,2]
[392806974,1761978119361,-192.43705656,0.00014999,2]
[392806975,1761978119374,-500.0,0.00014999,2]
[392806976,1761978119401,-500.0,0.00014999,2]
[392806977,1761978119443,-500.0,0.00014999,2]
[392806978,1761978119455,-500.0,0.00014999,2]
[392806979,1761978119470,-500.0,0.00014999,2]
[392806980,1761978119482,-500.0,0.00014999,2]
[392806981,1761978119493,-949.0829497,0.00014999,2]
[392806982,1761978119505,-155.0,0.00014999,2]
[392806983,1761978119517,-500.0,0.00014999,2]
[392806984,1761978119529,-406.96998748,0.00014999,2]
[392806985,1761978119545,-475.53562616,0.00014999,2]
[392806986,1761978119556,-509.70539372,0.00014999,2]
[392806987,1761978119566,-500.0,0.00014999,2]
[392806988,1761978119576,-500.0,0.00014999,2]
[392806989,1761978119586,-350.0,0.00014999,2]
[392806990,1761978119596,-746.38751862,0.00015,2]
[392806991,1761978119608,-500.0,0.00015,2]
[392806992,1761978119632,-500.0,0.00015,2]
[392806993,1761978119644,-500.0,0.00015,2]
[392806994,1761978119658,-500.0,0.00015,2]
[392806995,1761978119671,-163.247077,0.00015,2]
[392806996,1761978119683,-641.3407631,0.00015,2]
[392806997,1761978119695,-151.97796274,0.00015,2]
[392806998,1761978119707,-150.0,0.00015,2]
[392806999,1761978119730,-150.0,0.00015,2]
[392807000,1761978119742,-150.0,0.00015,2]
[392807001,1761978119758,-150.0,0.00015,2]
[392807002,1761978119769,-150.0,0.00015,2]
[392807003,1761978119781,-150.0,0.00015,2]
[392807004,1761978119793,-6286.87839432,0.00015,2]
[392807005,1761978119819,-9523.84036487,0.00015,2]
[392807006,1761978119863,-10000.01,0.00015,2]
[392807007,1761978119878,-10000.01,0.00015,2]
[392807008,1761978119899,-10000.01,0.00015,2]
[392807009,1761978119910,-10000.01,0.00015,2]
[392807010,1761978119921,-10000.01,0.00015,2]
[392807011,1761978119962,-10000.01,0.00015,2]
[392807012,1761978121796,-10000.01,0.00015,2]
[392807013,1761978122200,-10000.01,0.00015,2]
[392807014,1761978122444,-300.0,0.00014999,2]
[392807015,1761978122464,-300.0,0.00015,2]
[392807016,1761978122476,-9400.01,0.00015,2]
[392807017,1761978122687,-10000.01,0.00015,2]
[392807018,1761978125541,-10000.01,0.00015,2]
[392807019,1761978126463,-10000.01,0.00015,2]
[392807020,1761978126944,-150.0,0.00014991,2]
[392807021,1761978126984,-150.0,0.00015,2]
[392807022,1761978126999,-9700.01,0.00015,2]
[392807023,1761978127196,-10000.01,0.00015,2]
[392807024,1761978127445,-10000.01,0.00015,2]
[392807025,1761978127669,-10000.01,0.00015,2]
[392807026,1761978131038,-150.0,0.00014991,2]
[392807027,1761978131066,-150.0,0.00015,2]
[392807028,1761978131086,-9700.01,0.00015,2]
[392807029,1761978131260,-10000.01,0.00015,2]
[392807030,1761978131372,-10000.01,0.00015,2]
[392807031,1761978131491,-10000.01,0.00015,2]
[392807032,1761978131608,-10000.01,0.00015,2]
[392807033,1761978131715,-10000.01,0.00015,2]
[392807034,1761978131827,-150.0,0.00014991,2]
[392807035,1761978131847,-150.0,0.00015,2]
[392807036,1761978131858,-9700.01,0.00015,2]
[392807037,1761978131931,-10000.01,0.00015,2]
[392807038,1761978132252,-10000.01,0.00015,2]
[392807039,1761978132384,-10000.01,0.00015,2]
[392807040,1761978133833,-10000.01,0.00015,2]
[392807041,1761978134006,-10000.01,0.00015,2]
[392807042,1761978134119,-10000.01,0.00015,2]
[392807043,1761978134234,-10000.01,0.00015,2]
[392807044,1761978134353,-10000.01,0.00015,2]
[392807045,1761978134498,-10000.01,0.00015,2]
[392807046,1761978134627,-500.0,0.00014991,2]
[392807047,1761978134647,-500.0,0.00015,2]
[392807048,1761978134658,-9000.01,0.00015,2]
[392807049,1761978134737,-10000.01,0.00015,2]
[392807050,1761978134874,-10000.01,0.00015,2]
[392807051,1761978135040,-10000.01,0.00015,2]
[392807052,1761978136922,-10000.01,0.00015,2]
[392807053,1761978137119,-10000.01,0.00015,2]
[392807054,1761978137241,-10000.01,0.00015,2]
[392807055,1761978137391,-10000.01,0.00015,2]
[392807056,1761978137752,-10000.01,0.00015,2]
[392807057,1761978137800,-10000.01,0.00015,2]
[392807058,1761978137811,-10000.01,0.00015,2]
[392807059,1761978137957,-10000.01,0.00015,2]
[392807060,1761978138070,-10000.01,0.00015,2]
[392807061,1761978138346,-10000.01,0.00015,2]
[392807062,1761978139905,-10000.01,0.00015,2]
[392807063,1761978140143,-10000.01,0.00015,2]
[392807064,1761978140296,-10000.01,0.00015,2]
[392807065,1761978140438,-10000.01,0.00015,2]
[392807066,1761978140538,-10000.01,0.00015,2]
[392807067,1761978140649,-500.0,0.00014999,2]
[392807068,1761978140670,-500.0,0.00015,2]
[392807069,1761978140682,-9000.01,0.00015,2]
[392807070,1761978140763,-10000.01,0.00015,2]
[392807071,1761978140896,-500.0,0.00014999,2]
[392807072,1761978140916,-500.0,0.00015,2]
[392807073,1761978140927,-9000.01,0.00015,2]
[392807074,1761978141158,-500.0,0.00014999,2]
[392807075,1761978141178,-500.0,0.00015,2]
[392807076,1761978141190,-9000.01,0.00015,2]
[392807077,1761978141288,-10000.01,0.00015,2]
[392807078,1761978145978,-174.64690883,0.000149,2]
[392807079,1761978146010,-500.0,0.00014999,2]
[392807080,1761978146041,-500.0,0.00014999,2]
[392807081,1761978146069,-500.0,0.00014999,2]
[392807082,1761978146098,-500.0,0.00014999,2]
[392807083,1761978146129,-500.0,0.00014999,2]
[392807084,1761978146159,-500.0,0.00014999,2]
[392807085,1761978146189,-500.0,0.00014999,2]
[392807086,1761978146218,-500.0,0.00014999,2]
[392807087,1761978146246,-500.0,0.00014999,2]
[392807088,1761978146275,-304.78809715,0.00014999,2]
[392807089,1761978146292,-41.13998804,0.00014999,2]
[392807090,1761978146302,-133.50692079,0.00014999,2]
[392807091,1761978146314,-366.49307921,0.00014999,2]
[392807092,1761978146323,-133.50692079,0.00014999,2]
[392807093,1761978146342,-366.49307921,0.00014999,2]
[392807094,1761978146352,-133.50692079,0.00014999,2]
[392807095,1761978146363,-366.49307921,0.00014999,2]
[392807096,1761978146372,-133.50692079,0.00014999,2]
[392807097,1761978146407,-366.49307921,0.00014999,2]
[392807098,1761978146437,-500.0,0.00014999,2]
[392807099,1761978146469,-500.0,0.00014999,2]
[392807100,1761978146499,-500.0,0.00014999,2]
[392807101,1761978146530,-626.15434091,0.00014999,2]
[392807102,1761978146549,-500.0,0.00015,2]
[392807103,1761978146560,-500.0,0.00015,2]
[392807104,1761978146571,-500.0,0.00015,2]
[392807105,1761978146607,-500.0,0.00015,2]
[392807106,1761978146629,-500.0,0.00015,2]
[392807107,1761978146639,-500.0,0.00015,2]
[392807108,1761978146650,-345.92808519,0.00015,2]
[392807109,1761978146675,-366.49307921,0.00015,2]
[392807110,1761978146687,-500.0,0.00015,2]
[392807111,1761978146715,-500.0,0.00015,2]
[392807112,1761978146726,-500.0,0.00015,2]
[392807113,1761978146741,-626.15434091,0.00015,2]
[392807114,1761978146762,-5014.71515976,0.00015,2]
[392807115,1761978146773,-10000.01,0.00015,2]
[392807116,1761978146785,-10000.01,0.00015,2]
[392807117,1761978146795,-10000.01,0.00015,2]
[392807118,1761978146810,-10000.01,0.00015,2]
[392807137,1761978436614,500.00000016,0.00013,2]
[392807149,1761978448134,666.0,0.00013,2]
[392807182,1761978611115,-908.0,0.00013989,2]
[392807183,1761978611140,-19652.73579311,0.0001399,2]
[392807198,1761978631928,-166.66,0.0001441,2]
[392807199,1761978631939,-440.0,0.00014463,2]
[392807200,1761978631949,-440.0,0.00014526,2]
[392807201,1761978631960,-440.0,0.00014537,2]
[392807202,1761978631970,-440.0,0.00014575,2]
[392807203,1761978631981,-440.0,0.00014581,2]
[392807204,1761978631991,-211.37583249,0.00014616,2]
[392807205,1761978632002,-515.19967628,0.0001472,2]
[392807206,1761978632011,-440.0,0.00014765,2]
[392807207,1761978632020,-440.0,0.00014803,2]
[392807208,1761978632030,-440.0,0.00014833,2]
[392807209,1761978632040,-255.25723391,0.00014842,2]
[392807210,1761978632050,-394.0,0.00014843,2]
[392807211,1761978632061,-788.36258809,0.0001485,2]
[392807212,1761978632073,-334.62164374,0.0001485,2]
[392807213,1761978632085,-316.30138817,0.0001485,2]
[392807214,1761978632095,-432.8558795,0.00014854,2]
[392807215,1761978632107,-160.1441205,0.00014854,2]
[392807216,1761978632124,-1255.0,0.00014872,2]
[392807217,1761978632134,-500.0,0.00014873,2]
[392807218,1761978632144,-502.11430923,0.00014873,2]
[392807219,1761978632155,-502.00398933,0.00014873,2]